[Event "Late-Titled-Tuesday-Blitz-October-17-2023"]
[Site "Chess.com"]
[Date "2023.10.17"]
[Round "3"]
[White "AsaHoffmann"]
[Black "maurovargas01"]
[Result "1-0"]
[WhiteElo "2339"]
[BlackElo "1911"]
[TimeControl "180+1"]
[EndTime "14:28:36 PDT"]
[Termination "AsaHoffmann won on time"]

1. d4 {[%clk 0:02:54.8]} 1... d5 {[%clk 0:02:59.7]} 2. Bg5 {[%clk 0:02:52.7]}
2... h5 {[%clk 0:02:58]} 3. h4 {[%clk 0:02:47.5]} 3... Nh6 {[%clk 0:02:47]} 4.
e3 {[%clk 0:02:46.3]} 4... Bf5 {[%clk 0:02:40.7]} 5. Bd3 {[%clk 0:02:45]} 5...
Bxd3 {[%clk 0:02:39.7]} 6. Qxd3 {[%clk 0:02:44.9]} 6... f6 {[%clk 0:02:39.5]} 7.
Bf4 {[%clk 0:02:39.3]} 7... Nd7 {[%clk 0:02:35.5]} 8. Nf3 {[%clk 0:02:38.6]}
8... e6 {[%clk 0:02:30.6]} 9. c4 {[%clk 0:02:35.9]} 9... Bd6 {[%clk 0:02:28.6]}
10. Bxd6 {[%clk 0:02:34.7]} 10... cxd6 {[%clk 0:02:27.6]} 11. cxd5 {[%clk
0:02:34.6]} 11... exd5 {[%clk 0:02:25.4]} 12. Nc3 {[%clk 0:02:34.3]} 12... Nb6
{[%clk 0:02:22.8]} 13. O-O-O {[%clk 0:02:28.9]} 13... Qd7 {[%clk 0:02:16.3]} 14.
Kb1 {[%clk 0:02:27.4]} 14... O-O-O {[%clk 0:02:14.1]} 15. e4 {[%clk 0:02:17.6]}
15... dxe4 {[%clk 0:02:10.4]} 16. Qxe4 {[%clk 0:02:13.7]} 16... Kb8 {[%clk
0:02:08.5]} 17. Nd5 {[%clk 0:02:07.8]} 17... Qb5 {[%clk 0:01:41.9]} 18. Nc3
{[%clk 0:02:04.4]} 18... Qb4 {[%clk 0:01:36.6]} 19. d5 {[%clk 0:02:02]} 19...
Nc4 {[%clk 0:01:30.5]} 20. b3 {[%clk 0:01:50.3]} 20... Na3+ {[%clk 0:01:04.6]}
21. Kb2 {[%clk 0:01:48.8]} 21... Qa5 {[%clk 0:00:39]} 22. Rc1 {[%clk 0:01:37.3]}
22... Rhe8 {[%clk 0:00:37.2]} 23. Qd3 {[%clk 0:01:23.3]} 23... Ng4 {[%clk
0:00:35.3]} 24. Rhf1 {[%clk 0:01:20.9]} 24... Rc8 {[%clk 0:00:26.9]} 25. Nd2
{[%clk 0:01:17.7]} 25... Ne5 {[%clk 0:00:16.9]} 26. Qd4 {[%clk 0:01:15.3]} 26...
Nb5 {[%clk 0:00:13]} 27. Nxb5 {[%clk 0:01:12.6]} 27... Qxb5 {[%clk 0:00:10.5]}
28. Nc4 {[%clk 0:00:47.7]} 28... Nxc4+ {[%clk 0:00:07.3]} 29. Rxc4 {[%clk
0:00:47.3]} 29... Rxc4 {[%clk 0:00:06.5]} 30. Qxc4 {[%clk 0:00:46.4]} 30... Re2+
{[%clk 0:00:05.4]} 31. Kb1 {[%clk 0:00:42.7]} 31... Qxc4 {[%clk 0:00:03.3]} 32.
bxc4 {[%clk 0:00:42.6]} 32... Kc7 {[%clk 0:00:02.6]} 33. g3 {[%clk 0:00:41.1]}
33... Kb6 {[%clk 0:00:02.5]} 34. f3 {[%clk 0:00:39.4]} 34... Kc5 {[%clk
0:00:03.4]} 35. g4 {[%clk 0:00:39.5]} 35... Kxc4 {[%clk 0:00:02.8]} 36. gxh5
{[%clk 0:00:39]} 36... Kc3 {[%clk 0:00:02.3]} 37. a4 {[%clk 0:00:38.3]} 37...
Kb3 {[%clk 0:00:02]} 38. Kc1 {[%clk 0:00:37.7]} 38... Rh2 {[%clk 0:00:02]} 39.
Rg1 {[%clk 0:00:37.7]} 39... Rxh4 {[%clk 0:00:01.8]} 40. Rxg7 {[%clk 0:00:37.3]}
40... Rxa4 {[%clk 0:00:02]} 41. Rxb7+ {[%clk 0:00:36.4]} 41... Kc3 {[%clk
0:00:02.2]} 42. Kd1 {[%clk 0:00:36.4]} 42... Kd3 {[%clk 0:00:02.2]} 43. Ke1
{[%clk 0:00:36]} 43... Ke3 {[%clk 0:00:02.5]} 44. Rb3+ {[%clk 0:00:35.7]} 44...
Kd4 {[%clk 0:00:01.7]} 45. h6 {[%clk 0:00:35.7]} 1-0

[Event "Late-Titled-Tuesday-Blitz-October-17-2023"]
[Site "Chess.com"]
[Date "2023.10.17"]
[Round "3"]
[White "Mykola-Bortnyk"]
[Black "BardArtem"]
[Result "0-1"]
[WhiteElo "2981"]
[BlackElo "2764"]
[TimeControl "180+1"]
[EndTime "14:28:38 PDT"]
[Termination "BardArtem won on time"]

1. e4 {[%clk 0:03:00.9]} 1... c6 {[%clk 0:02:53]} 2. d4 {[%clk 0:03:00.8]} 2...
d5 {[%clk 0:02:53.9]} 3. exd5 {[%clk 0:03:01.6]} 3... cxd5 {[%clk 0:02:54.8]} 4.
c4 {[%clk 0:03:02.2]} 4... Nf6 {[%clk 0:02:54.9]} 5. Nc3 {[%clk 0:03:02.6]} 5...
g6 {[%clk 0:02:53.8]} 6. cxd5 {[%clk 0:03:00.5]} 6... Nxd5 {[%clk 0:02:53.3]} 7.
Qb3 {[%clk 0:02:58.6]} 7... Nb6 {[%clk 0:02:47.7]} 8. a4 {[%clk 0:02:57.8]} 8...
Bg7 {[%clk 0:02:45]} 9. a5 {[%clk 0:02:56.5]} 9... N6d7 {[%clk 0:02:44.9]} 10.
Nf3 {[%clk 0:02:55.6]} 10... O-O {[%clk 0:02:44.7]} 11. Be3 {[%clk 0:02:50.2]}
11... Nf6 {[%clk 0:02:40.9]} 12. Ne5 {[%clk 0:02:40.4]} 12... Nc6 {[%clk
0:02:37.1]} 13. a6 {[%clk 0:02:32.9]} 13... Nxd4 {[%clk 0:02:12.2]} 14. Qd1
{[%clk 0:01:45.3]} 14... Nf5 {[%clk 0:02:01]} 15. Qxd8 {[%clk 0:01:41.9]} 15...
Rxd8 {[%clk 0:02:01.9]} 16. Bc4 {[%clk 0:01:42.3]} 16... Nd6 {[%clk 0:02:00.5]}
17. Rd1 {[%clk 0:01:30.4]} 17... Nd7 {[%clk 0:01:40.8]} 18. Nxf7 {[%clk
0:01:16]} 18... Nxf7 {[%clk 0:01:37.7]} 19. Bd5 {[%clk 0:01:16.7]} 19... Rb8
{[%clk 0:01:00.6]} 20. Bxa7 {[%clk 0:01:15.8]} 20... Ra8 {[%clk 0:01:01.1]} 21.
Nb5 {[%clk 0:01:16]} 21... bxa6 {[%clk 0:00:56.1]} 22. Bxa8 {[%clk 0:01:16.2]}
22... axb5 {[%clk 0:00:57]} 23. O-O {[%clk 0:01:08]} 23... Rf8 {[%clk
0:00:54.8]} 24. Rfe1 {[%clk 0:01:04.3]} 24... Nde5 {[%clk 0:00:48.3]} 25. Bd5
{[%clk 0:00:57.7]} 25... Bf6 {[%clk 0:00:37.7]} 26. Bc5 {[%clk 0:00:54.3]} 26...
Kg7 {[%clk 0:00:35.9]} 27. h3 {[%clk 0:00:52.1]} 27... Nd6 {[%clk 0:00:32]} 28.
b3 {[%clk 0:00:50.3]} 28... Bf5 {[%clk 0:00:29.8]} 29. Bxd6 {[%clk 0:00:35.2]}
29... exd6 {[%clk 0:00:29.6]} 30. Ra1 {[%clk 0:00:34.4]} 30... Kh6 {[%clk
0:00:25.6]} 31. g4 {[%clk 0:00:32.6]} 31... Bc2 {[%clk 0:00:19.8]} 32. f4 {[%clk
0:00:30.5]} 32... Nd3 {[%clk 0:00:13.2]} 33. g5+ {[%clk 0:00:29.9]} 33... Kh5
{[%clk 0:00:13.7]} 34. gxf6 {[%clk 0:00:05.4]} 34... Nxe1 {[%clk 0:00:14]} 35.
Ra7 {[%clk 0:00:04.4]} 35... g5 {[%clk 0:00:12.8]} 36. Kf2 {[%clk 0:00:03.7]}
36... Nd3+ {[%clk 0:00:12.5]} 37. Ke3 {[%clk 0:00:04.4]} 37... Nxf4 {[%clk
0:00:12.4]} 38. f7 {[%clk 0:00:05.2]} 38... Nxd5+ {[%clk 0:00:11.5]} 39. Kd2
{[%clk 0:00:05.5]} 39... Bg6 {[%clk 0:00:11.4]} 0-1

[Event "Late-Titled-Tuesday-Blitz-October-17-2023"]
[Site "Chess.com"]
[Date "2023.10.17"]
[Round "3"]
[White "GaiozNigalidze"]
[Black "AryanTari"]
[Result "0-1"]
[WhiteElo "2703"]
[BlackElo "2946"]
[TimeControl "180+1"]
[EndTime "14:28:40 PDT"]
[Termination "AryanTari won by resignation"]

1. d4 {[%clk 0:03:00.9]} 1... Nf6 {[%clk 0:02:57.8]} 2. c4 {[%clk 0:03:01.2]}
2... g6 {[%clk 0:02:58.4]} 3. Nc3 {[%clk 0:03:00.2]} 3... d5 {[%clk 0:02:58.5]}
4. Nf3 {[%clk 0:02:58.4]} 4... Bg7 {[%clk 0:02:58.4]} 5. Bg5 {[%clk 0:02:57.3]}
5... Ne4 {[%clk 0:02:58.2]} 6. cxd5 {[%clk 0:02:57.4]} 6... Nxg5 {[%clk
0:02:58.1]} 7. Nxg5 {[%clk 0:02:56.1]} 7... e6 {[%clk 0:02:58]} 8. Qd2 {[%clk
0:02:55.1]} 8... exd5 {[%clk 0:02:57.6]} 9. h4 {[%clk 0:02:49.1]} 9... h6 {[%clk
0:02:50.3]} 10. Nf3 {[%clk 0:02:48.1]} 10... O-O {[%clk 0:02:49]} 11. e3 {[%clk
0:02:46.6]} 11... c6 {[%clk 0:02:47.2]} 12. Be2 {[%clk 0:02:44.7]} 12... Re8
{[%clk 0:02:45.4]} 13. Rc1 {[%clk 0:02:40.2]} 13... Nd7 {[%clk 0:02:39.2]} 14.
g4 {[%clk 0:02:14.2]} 14... a5 {[%clk 0:02:36.1]} 15. Kf1 {[%clk 0:02:08.7]}
15... b5 {[%clk 0:02:35.3]} 16. Qc2 {[%clk 0:01:52.5]} 16... Nb6 {[%clk
0:02:09.4]} 17. g5 {[%clk 0:01:31.2]} 17... h5 {[%clk 0:02:08.2]} 18. b3 {[%clk
0:01:28.5]} 18... a4 {[%clk 0:02:03.9]} 19. bxa4 {[%clk 0:01:22.8]} 19... b4
{[%clk 0:02:02.2]} 20. Nb1 {[%clk 0:01:15.5]} 20... Bf5 {[%clk 0:02:01.9]} 21.
Qb3 {[%clk 0:01:04.8]} 21... Rxa4 {[%clk 0:01:46.5]} 22. Rxc6 {[%clk 0:01:03.5]}
22... Bd7 {[%clk 0:01:33.6]} 23. Rc1 {[%clk 0:00:57.5]} 23... Nc4 {[%clk
0:01:31.7]} 24. Kg2 {[%clk 0:00:40.3]} 24... Qa8 {[%clk 0:01:31.6]} 25. Rxc4
{[%clk 0:00:32.9]} 25... dxc4 {[%clk 0:01:30.4]} 26. Bxc4 {[%clk 0:00:33.8]}
26... Be6 {[%clk 0:01:21.4]} 27. d5 {[%clk 0:00:33]} 27... Bg4 {[%clk
0:01:18.6]} 28. Nbd2 {[%clk 0:00:32.4]} 28... Bc3 {[%clk 0:01:18.7]} 29. Rb1
{[%clk 0:00:24.4]} 29... Ra3 {[%clk 0:01:12.8]} 30. Qc2 {[%clk 0:00:24]} 30...
Rc8 {[%clk 0:01:07.9]} 31. Bb3 {[%clk 0:00:22.6]} 31... Kg7 {[%clk 0:00:55]} 32.
Qd3 {[%clk 0:00:21.3]} 32... Rd8 {[%clk 0:00:48.1]} 33. e4 {[%clk 0:00:20.6]}
33... Qc8 {[%clk 0:00:47.1]} 34. Nc4 {[%clk 0:00:19.6]} 34... Ra7 {[%clk
0:00:44.7]} 35. Rd1 {[%clk 0:00:18.8]} 35... Rc7 {[%clk 0:00:43]} 36. d6 {[%clk
0:00:17.3]} 36... Bxf3+ {[%clk 0:00:39.5]} 37. Kxf3 {[%clk 0:00:10.9]} 37...
Qg4+ {[%clk 0:00:39.5]} 38. Ke3 {[%clk 0:00:11.4]} 38... Rc5 {[%clk 0:00:40.1]}
39. f3 {[%clk 0:00:10]} 39... Qxh4 {[%clk 0:00:40]} 40. Rg1 {[%clk 0:00:09.2]}
40... Qh2 {[%clk 0:00:39.2]} 41. Qd1 {[%clk 0:00:08.3]} 41... Be5 {[%clk
0:00:32.8]} 42. Nxe5 {[%clk 0:00:06.7]} 42... Qxe5 {[%clk 0:00:32.1]} 43. Kf2
{[%clk 0:00:05.1]} 43... Rxd6 {[%clk 0:00:31.9]} 44. Qe2 {[%clk 0:00:04.9]}
44... h4 {[%clk 0:00:28.7]} 45. Kg2 {[%clk 0:00:05.1]} 45... Qg3+ {[%clk
0:00:28.1]} 46. Kf1 {[%clk 0:00:05.6]} 46... Qf4 {[%clk 0:00:27.7]} 47. e5
{[%clk 0:00:04.5]} 47... Rc1+ {[%clk 0:00:27.7]} 48. Kg2 {[%clk 0:00:05]} 48...
Qg3+ {[%clk 0:00:27.9]} 0-1

[Event "Late-Titled-Tuesday-Blitz-October-17-2023"]
[Site "Chess.com"]
[Date "2023.10.17"]
[Round "3"]
[White "WPWPWP-2015"]
[Black "pirulillo"]
[Result "1-0"]
[WhiteElo "2569"]
[BlackElo "2347"]
[TimeControl "180+1"]
[EndTime "14:28:42 PDT"]
[Termination "WPWPWP-2015 won by resignation"]

1. e4 {[%clk 0:03:00.9]} 1... c5 {[%clk 0:02:59.6]} 2. Nf3 {[%clk 0:03:00.5]}
2... e6 {[%clk 0:03:00.1]} 3. d4 {[%clk 0:03:00.7]} 3... cxd4 {[%clk 0:03:01]}
4. Nxd4 {[%clk 0:03:01.1]} 4... Nf6 {[%clk 0:03:00.8]} 5. Nc3 {[%clk 0:03:00.8]}
5... Nc6 {[%clk 0:03:00.1]} 6. Ndb5 {[%clk 0:03:00]} 6... d6 {[%clk 0:03:00.1]}
7. Bf4 {[%clk 0:02:59.1]} 7... e5 {[%clk 0:02:59.4]} 8. Bg5 {[%clk 0:02:59.1]}
8... a6 {[%clk 0:02:59.9]} 9. Na3 {[%clk 0:02:58.5]} 9... b5 {[%clk 0:03:00.5]}
10. Nd5 {[%clk 0:02:58.3]} 10... Be7 {[%clk 0:03:00.2]} 11. Bxf6 {[%clk
0:02:58.7]} 11... Bxf6 {[%clk 0:03:01.1]} 12. c3 {[%clk 0:02:58.7]} 12... O-O
{[%clk 0:03:00.2]} 13. Nc2 {[%clk 0:02:58.7]} 13... Bg5 {[%clk 0:03:00.3]} 14.
h4 {[%clk 0:02:57.8]} 14... Bh6 {[%clk 0:02:58.9]} 15. a4 {[%clk 0:02:58]} 15...
bxa4 {[%clk 0:02:58.1]} 16. Rxa4 {[%clk 0:02:57.7]} 16... a5 {[%clk 0:02:58.3]}
17. Bc4 {[%clk 0:02:54.4]} 17... Rb8 {[%clk 0:02:57.3]} 18. b3 {[%clk
0:02:53.9]} 18... g6 {[%clk 0:02:55.1]} 19. h5 {[%clk 0:02:52.2]} 19... Kg7
{[%clk 0:02:55.5]} 20. Nce3 {[%clk 0:02:49.4]} 20... Be6 {[%clk 0:02:51.8]} 21.
g3 {[%clk 0:02:45.3]} 21... Bxe3 {[%clk 0:02:23.1]} 22. Nxe3 {[%clk 0:02:43]}
22... Bxc4 {[%clk 0:02:12.4]} 23. Rxc4 {[%clk 0:02:36.4]} 23... Ne7 {[%clk
0:01:51.4]} 24. Qf3 {[%clk 0:01:40.1]} 24... f5 {[%clk 0:01:40.4]} 25. Qd1
{[%clk 0:01:29.6]} 25... f4 {[%clk 0:01:30.6]} 26. Ng4 {[%clk 0:01:11.4]} 26...
fxg3 {[%clk 0:01:27.7]} 27. fxg3 {[%clk 0:01:10.7]} 27... d5 {[%clk 0:01:01.9]}
28. exd5 {[%clk 0:01:06.3]} 28... Qxd5 {[%clk 0:01:02.8]} 29. Qxd5 {[%clk
0:01:01.8]} 29... Nxd5 {[%clk 0:01:03.7]} 30. Rc5 {[%clk 0:01:00.9]} 30... Rxb3
{[%clk 0:00:52.3]} 31. Kd2 {[%clk 0:00:57.5]} 31... Nf6 {[%clk 0:00:44]} 32.
Rc7+ {[%clk 0:00:38.6]} 32... Rf7 {[%clk 0:00:40]} 33. h6+ {[%clk 0:00:36.9]}
33... Kf8 {[%clk 0:00:38.2]} 34. Rxf7+ {[%clk 0:00:32.6]} 34... Kxf7 {[%clk
0:00:38.3]} 35. Nxe5+ {[%clk 0:00:32.9]} 35... Ke6 {[%clk 0:00:38.7]} 36. Nd3
{[%clk 0:00:32.1]} 36... a4 {[%clk 0:00:36.6]} 37. Nc5+ {[%clk 0:00:31.8]} 37...
Kd5 {[%clk 0:00:37.5]} 38. Nxb3 {[%clk 0:00:31.7]} 38... axb3 {[%clk 0:00:38.4]}
39. Ra1 {[%clk 0:00:23.7]} 39... Ne4+ {[%clk 0:00:36.9]} 40. Kd3 {[%clk
0:00:23.2]} 40... Nxg3 {[%clk 0:00:36.1]} 41. Ra5+ {[%clk 0:00:22.5]} 41... Kc6
{[%clk 0:00:35.6]} 42. Ra3 {[%clk 0:00:21.4]} 42... Nf5 {[%clk 0:00:35.7]} 43.
Ra6+ {[%clk 0:00:19.5]} 43... Kc5 {[%clk 0:00:34.5]} 44. Rxg6 {[%clk 0:00:19.2]}
44... hxg6 {[%clk 0:00:29.1]} 45. h7 {[%clk 0:00:18.8]} 45... b2 {[%clk
0:00:29.7]} 46. Kc2 {[%clk 0:00:18.6]} 46... Ne3+ {[%clk 0:00:18]} 47. Kxb2
{[%clk 0:00:18.3]} 47... Nc4+ {[%clk 0:00:18.9]} 48. Kc1 {[%clk 0:00:17.8]}
48... Ne5 {[%clk 0:00:19.8]} 49. h8=Q {[%clk 0:00:16.6]} 1-0

[Event "Late-Titled-Tuesday-Blitz-October-17-2023"]
[Site "Chess.com"]
[Date "2023.10.17"]
[Round "3"]
[White "Lennis93"]
[Black "Real_taiatai"]
[Result "1-0"]
[WhiteElo "2702"]
[BlackElo "2442"]
[TimeControl "180+1"]
[EndTime "14:28:45 PDT"]
[Termination "Lennis93 won by checkmate"]

1. c4 {[%clk 0:03:00.9]} 1... Nf6 {[%clk 0:02:59.3]} 2. g3 {[%clk 0:03:00.7]}
2... e6 {[%clk 0:02:58.1]} 3. Bg2 {[%clk 0:02:59.4]} 3... d5 {[%clk 0:02:58.6]}
4. Nf3 {[%clk 0:03:00]} 4... dxc4 {[%clk 0:02:58.6]} 5. Qa4+ {[%clk 0:02:58.5]}
5... Nbd7 {[%clk 0:02:56.6]} 6. O-O {[%clk 0:02:54.5]} 6... a6 {[%clk
0:02:56.5]} 7. Qxc4 {[%clk 0:02:48.1]} 7... b5 {[%clk 0:02:55.5]} 8. Qc2 {[%clk
0:02:48.4]} 8... Bb7 {[%clk 0:02:55.5]} 9. b3 {[%clk 0:02:45.3]} 9... c5 {[%clk
0:02:54.9]} 10. Bb2 {[%clk 0:02:45.6]} 10... Be7 {[%clk 0:02:54.8]} 11. d3
{[%clk 0:02:46]} 11... O-O {[%clk 0:02:54.8]} 12. a4 {[%clk 0:02:46.4]} 12...
Rc8 {[%clk 0:02:47.9]} 13. Nc3 {[%clk 0:02:46.1]} 13... Qb6 {[%clk 0:02:46.4]}
14. axb5 {[%clk 0:02:41.8]} 14... axb5 {[%clk 0:02:46.1]} 15. h3 {[%clk
0:02:22.2]} 15... Nd5 {[%clk 0:02:43.5]} 16. Nxd5 {[%clk 0:02:21]} 16... Bxd5
{[%clk 0:02:42.3]} 17. e4 {[%clk 0:02:19.3]} 17... Bb7 {[%clk 0:02:41.4]} 18.
Nd2 {[%clk 0:02:19.3]} 18... Rfd8 {[%clk 0:02:32.2]} 19. Kh2 {[%clk 0:02:17.1]}
19... Nb8 {[%clk 0:02:27.4]} 20. Qc3 {[%clk 0:02:05.6]} 20... Bf8 {[%clk
0:02:27.2]} 21. Nf3 {[%clk 0:01:48.1]} 21... Nc6 {[%clk 0:02:26.5]} 22. Rfd1
{[%clk 0:01:45.1]} 22... Rd7 {[%clk 0:02:09.2]} 23. Bf1 {[%clk 0:01:23.8]} 23...
Nd4 {[%clk 0:01:54.8]} 24. Nxd4 {[%clk 0:01:20.8]} 24... cxd4 {[%clk 0:01:55.7]}
25. Qd2 {[%clk 0:01:19.5]} 25... Rdc7 {[%clk 0:01:54.7]} 26. Rdc1 {[%clk
0:01:19]} 26... e5 {[%clk 0:01:46.3]} 27. Rxc7 {[%clk 0:01:18.2]} 27... Rxc7
{[%clk 0:01:45.2]} 28. h4 {[%clk 0:00:56.4]} 28... Qe6 {[%clk 0:01:44.3]} 29.
Qd1 {[%clk 0:00:51]} 29... Bb4 {[%clk 0:01:43.1]} 30. Rc1 {[%clk 0:00:49.9]}
30... Bc3 {[%clk 0:01:42.1]} 31. Bh3 {[%clk 0:00:43.7]} 31... Qf6 {[%clk
0:01:37.9]} 32. Rc2 {[%clk 0:00:43.5]} 32... g6 {[%clk 0:01:33.1]} 33. Bc1
{[%clk 0:00:42.3]} 33... b4 {[%clk 0:01:15.2]} 34. Bg5 {[%clk 0:00:42.1]} 34...
Qa6 {[%clk 0:01:12.4]} 35. Qf3 {[%clk 0:00:41.8]} 35... Rc6 {[%clk 0:00:49.9]}
36. Bd7 {[%clk 0:00:26.6]} 36... Rd6 {[%clk 0:00:45.8]} 37. Ba4 {[%clk
0:00:26.4]} 37... f6 {[%clk 0:00:44]} 38. Bh6 {[%clk 0:00:26.2]} 38... Bc8
{[%clk 0:00:39.1]} 39. g4 {[%clk 0:00:26.6]} 39... Qb7 {[%clk 0:00:29.6]} 40.
Qg3 {[%clk 0:00:24.8]} 40... Qe7 {[%clk 0:00:27]} 41. f4 {[%clk 0:00:24.5]}
41... Ra6 {[%clk 0:00:20.9]} 42. Rf2 {[%clk 0:00:24.3]} 42... Rxa4 {[%clk
0:00:17.5]} 43. bxa4 {[%clk 0:00:23.8]} 43... b3 {[%clk 0:00:18.1]} 44. fxe5
{[%clk 0:00:24.2]} 44... b2 {[%clk 0:00:17.8]} 45. exf6 {[%clk 0:00:22.5]} 45...
Qe6 {[%clk 0:00:16.5]} 46. Qb8 {[%clk 0:00:19.7]} 46... b1=Q {[%clk 0:00:15.2]}
47. f7+ {[%clk 0:00:18.6]} 47... Kh8 {[%clk 0:00:14.2]} 48. f8=Q+ {[%clk
0:00:17.6]} 48... Qg8 {[%clk 0:00:14.9]} 49. Qe5# {[%clk 0:00:16]} 1-0

[Event "Late-Titled-Tuesday-Blitz-October-17-2023"]
[Site "Chess.com"]
[Date "2023.10.17"]
[Round "3"]
[White "rdarruda"]
[Black "oskariot"]
[Result "0-1"]
[WhiteElo "2481"]
[BlackElo "2665"]
[TimeControl "180+1"]
[EndTime "14:28:46 PDT"]
[Termination "oskariot won by resignation"]

1. d4 {[%clk 0:02:58.6]} 1... Nf6 {[%clk 0:02:29.3]} 2. Nf3 {[%clk 0:02:55.2]}
2... g6 {[%clk 0:02:27.3]} 3. Nc3 {[%clk 0:02:54.4]} 3... Bg7 {[%clk 0:02:26.3]}
4. e4 {[%clk 0:02:52.9]} 4... d6 {[%clk 0:02:26.7]} 5. Bg5 {[%clk 0:02:52.1]}
5... h6 {[%clk 0:02:26]} 6. Bh4 {[%clk 0:02:51.5]} 6... g5 {[%clk 0:02:26.5]} 7.
Bg3 {[%clk 0:02:50.8]} 7... Nh5 {[%clk 0:02:27.4]} 8. Qd2 {[%clk 0:02:50.7]}
8... Nd7 {[%clk 0:02:24.5]} 9. O-O-O {[%clk 0:02:49.6]} 9... Nxg3 {[%clk
0:02:24.2]} 10. hxg3 {[%clk 0:02:47.9]} 10... a6 {[%clk 0:02:16.6]} 11. e5
{[%clk 0:02:29.5]} 11... e6 {[%clk 0:01:50.2]} 12. exd6 {[%clk 0:02:25.4]} 12...
cxd6 {[%clk 0:01:50.3]} 13. Ne4 {[%clk 0:02:25.1]} 13... Nf6 {[%clk 0:01:36.5]}
14. Bd3 {[%clk 0:02:10.9]} 14... b5 {[%clk 0:01:16.1]} 15. Nxf6+ {[%clk
0:01:49.6]} 15... Bxf6 {[%clk 0:01:15.5]} 16. d5 {[%clk 0:01:41.3]} 16... e5
{[%clk 0:01:13]} 17. Nh2 {[%clk 0:01:34.8]} 17... h5 {[%clk 0:01:06.2]} 18. f3
{[%clk 0:01:27.2]} 18... g4 {[%clk 0:00:53.7]} 19. f4 {[%clk 0:01:25.9]} 19...
exf4 {[%clk 0:00:53.4]} 20. gxf4 {[%clk 0:01:23.6]} 20... b4 {[%clk 0:00:48.1]}
21. Nf1 {[%clk 0:01:19]} 21... Qb6 {[%clk 0:00:37.9]} 22. Ng3 {[%clk 0:01:05.5]}
22... Qd4 {[%clk 0:00:18.8]} 23. Bb5+ {[%clk 0:00:58.6]} 23... Kf8 {[%clk
0:00:18.5]} 24. Qxd4 {[%clk 0:00:58]} 24... Bxd4 {[%clk 0:00:19.4]} 25. Rxd4
{[%clk 0:00:57.8]} 25... axb5 {[%clk 0:00:19.4]} 26. Kb1 {[%clk 0:00:54.5]}
26... h4 {[%clk 0:00:17.9]} 27. Ne4 {[%clk 0:00:48.7]} 27... h3 {[%clk
0:00:13.4]} 28. g3 {[%clk 0:00:48.8]} 28... Rh6 {[%clk 0:00:11.7]} 29. Rxb4
{[%clk 0:00:48.1]} 29... Bf5 {[%clk 0:00:11.8]} 30. Nc3 {[%clk 0:00:26.9]} 30...
Re8 {[%clk 0:00:11.6]} 31. Kc1 {[%clk 0:00:27.4]} 31... Re3 {[%clk 0:00:11.4]}
32. Rxb5 {[%clk 0:00:26.4]} 32... Rxg3 {[%clk 0:00:11.5]} 33. Rb8+ {[%clk
0:00:26.4]} 33... Kg7 {[%clk 0:00:11.4]} 34. Re8 {[%clk 0:00:24.5]} 34... h2
{[%clk 0:00:08]} 35. Ree1 {[%clk 0:00:23.5]} 35... Rg2 {[%clk 0:00:08.2]} 36.
Ne2 {[%clk 0:00:22.2]} 36... g3 {[%clk 0:00:07.3]} 37. Nd4 {[%clk 0:00:20.8]}
37... Bg4 {[%clk 0:00:04.3]} 38. a4 {[%clk 0:00:16.9]} 38... Rf2 {[%clk
0:00:04.6]} 39. a5 {[%clk 0:00:16.2]} 39... g2 {[%clk 0:00:04.5]} 40. a6 {[%clk
0:00:14.3]} 40... gxh1=Q {[%clk 0:00:04]} 41. Rxh1 {[%clk 0:00:15.2]} 41... Rg2
{[%clk 0:00:03.5]} 42. Ne2 {[%clk 0:00:13.1]} 42... Rxe2 {[%clk 0:00:03.4]} 43.
a7 {[%clk 0:00:14]} 43... Rh8 {[%clk 0:00:03.3]} 0-1